Cogmind - Beta 13 @@@ ROGUE MODE // 2024.04.09 @ 22:29:07 Player: Vriska Result: Self-destructed Performance ------------- Evolutions (1) 500 Regions Visited (2) 400 Robots Destroyed (28) 140 Value Destroyed (864) 864 Prototype IDs (0) 0 Alien Tech Used (0) 0 Bonus (0) 0 TOTAL SCORE: 1904 Bonus ------- None Cogmind --------- Core Integrity 332/400 Matter 250/300 Energy 140/140 System Corruption 0% Temperature Cool (0) Movement Core (200) Ox3 Location -9/Materials Parts ------- > --- POWER (1) -------- Light Deuterium Engine > --- PROPULSION (2) --- (None) > --- UTILITY (4) ------ Advanced Visual Processing Unit Signal Interpreter > --- WEAPON (2) ------- Assault Rifle Improved Light Cannon > --- INVENTORY (5) ---- Light Deuterium Engine Assault Rifle Light Cannon Light Cannon Datajack Peak State ------------ > --- POWER ------------ Light Deuterium Engine > --- PROPULSION ------- Light Treads Light Treads > --- UTILITY ---------- Medium Storage Unit Advanced Visual Processing Unit Signal Interpreter > --- WEAPON ----------- Assault Rifle Assault Rifle > --- INVENTORY -------- Light Deuterium Engine Light Treads Assault Rifle Light Cannon Light Cannon Improved Light Cannon Datajack [Rating: 13] Favorites ----------- Power Ion Engine Engine Ion Engine Propulsion Light Treads Treads Light Treads Utility Visual Processing Unit Storage Medium Storage Unit Processor Visual Processing Unit Weapon Assault Rifle Energy Gun EM Pulse Gun Ballistic Gun Assault Rifle Ballistic Cannon Improved Light Cannon Special Melee Weapon Datajack Build | -11 -10 -9 ------- Run | Yrd Mat Mat Slots Evolved 2 | . . 2 Power . | . . . Propulsion . | . . . Utility 2 | . . 2 Weapon . | . . . Parts Attached 23 | 7 10 6 Power 4 | 2 1 1 Engine 4 | 2 1 1 Core . | . . . Reactor . | . . . Propulsion 4 | 2 1 1 Treads 4 | 2 1 1 Leg . | . . . Wheel . | . . . Hover . | . . . Flight . | . . . Utility 6 | 1 3 2 Device . | . . . Storage 3 | 1 2 . Processor 3 | . 1 2 Hackware . | . . . Protection . | . . . Artifact . | . . . Weapon 9 | 2 5 2 Energy Gun 2 | 1 1 . Energy Cannon . | . . . Ballistic Gun 4 | 1 3 . Ballistic Cannon 2 | . . 2 Launcher . | . . . Special Weapon . | . . . Impact Weapon . | . . . Slashing Weapon . | . . . Piercing Weapon . | . . . Special Melee Weapon 1 | . 1 . Unidentified Prototypes . | . . . Parts Lost 4 | . . 4 Power . | . . . Propulsion 3 | . . 3 Utility . | . . . Weapon 1 | . . 1 Highest Loss Streak 2 | . . 2 To Critical Strikes . | . . . Average Slot Usage (%) 92 | . 96 79 Engine 13 | . 14 11 Treads 25 | . 28 14 Storage 10 | . 11 10 Processor 14 | . 13 21 Energy Gun 4 | . 5 . Ballistic Gun 20 | . 22 14 Ballistic Cannon 1 | . . 7 Naked Turns . | . . . Heaviest Build 21 | 11 19 21 Greatest Support 40 | 40 40 40 Greatest Overweight (x) 3 | . . 3 Average Overweight (x) . | . . . Largest Inventory Capacity 10 | 8 10 10 Average Capacity 8 | 7 8 9 Most Carried 9 | 4 7 9 Average Carried 4 | 2 4 6 Final Capacity 10 | 8 10 5 Final Carried 7 | 2 7 5 Class Distribution -------------------- 100% | Mutant Dominant Class ---------------- Mutant | -10/Materials Mutant | -9/Materials Resources | -11 -10 -9 ----------- Run | Yrd Mat Mat Matter Collected 842 | 231 349 262 Remotely . | . . . Salvage Created 925 | . 484 441 Parts 52 | . 30 22 Haulers Intercepted . | . . . Recyclers Shooed 1 | . 1 . Parts Field Recycled . | . . . Retrieved Matter . | . . . Parts Self-Destructed . | . . . Prevented . | . . . Kills | -11 -10 -9 ------- Run | Yrd Mat Mat Combat Hostiles Destroyed 21 | . 10 11 Guns 14 | . 9 5 Cannons 6 | . . 6 AOE 1 | . 1 . Classes Destroyed 6 | . 5 1 Worker 2 | . 1 1 Operator 1 | . 1 . Watcher 4 | . 3 1 Swarmer 2 | . 2 . Grunt 18 | . 8 10 Sentry 1 | . . 1 Best Kill Streak 3 | . 3 3 Combat Bots Only 2 | . 2 2 Max Kills in Single Turn 2 | . 2 1 Gunslinging 1 | . 1 . Exploded 1 | . 1 . Melee . | . . . Uniques/NPCs Destroyed . | . . . Combat | -11 -10 -9 -------- Run | Yrd Mat Mat Hostile Shots Fired 103 | . 52 51 Missed 34 | . 16 18 Damage Taken 874 | . 444 430 Core 128 | . 60 68 Absorbed by Shields . | . . . Core Remaining (%) 88 | 100 76 . Volleys Fired 96 | . 54 42 Largest 2 | . 2 2 Hottest 60 | . 60 59 Shots Fired 181 | . 99 82 Gun 155 | . 99 56 Cannon 26 | . . 26 Launcher . | . . . Special . | . . . Kinetic 158 | . 76 82 Thermal . | . . . Explosive . | . . . Electromagnetic 23 | . 23 . Robot Hit Streak 9 | . 9 7 Robot Miss Streak 5 | . 5 2 Penetration Max . | . . . Secondary Targets 1 | . 1 . Max Gunslinging Chain 1 | . 1 . Shots Hit Robots 108 | . 55 53 Core Hits 48 | . 26 22 Critical Kills . | . . . Critical Parts Destroyed . | . . . Critical Strikes 2 | . 1 1 Blast 1 | . . 1 Corrupt 1 | . 1 . Melee Attacks . | . . . Impact . | . . . Slashing . | . . . Piercing . | . . . Sneak Attacks . | . . . Combat Hostiles . | . . . Follow-up Attacks . | . . . Damage Inflicted 1683 | . 782 901 Guns 1140 | . 690 450 Cannons 451 | . . 451 Explosions 92 | . 92 . Melee . | . . . Ramming . | . . . Kinetic 1379 | . 478 901 Thermal 92 | . 92 . Explosive . | . . . Electromagnetic 212 | . 212 . Impact . | . . . Slashing . | . . . Piercing . | . . . Highest Corruption . | . . . Average Corruption . | . . . Corruption Purged . | . . . Corruption Blocked . | . . . Overload Shots . | . . . Overflow Damage . | . . . Projectiles . | . . . Explosions . | . . . Melee . | . . . Knockbacks 5 | . . 5 Impact . | . . . Kinetic 5 | . . 5 Secondary . | . . . Self-Inflicted Damage 22 | . . 22 Shots 1 | . . 1 Rammed . | . . . Targets Rammed . | . . . Kicked . | . . . Crushed . | . . . Highest Temperature 40 | . 40 12 Average Temperature 12 | . 14 7 Received Heat Transfer 405 | . 201 204 Siege Activations . | . . . Robots Corrupted . | . . . Combat Hostiles . | . . . Parts Fried 1 | . 1 . Impact Corruptions . | . . . Robots Melted . | . . . Combat Hostiles . | . . . Parts Melted . | . . . Heat Transferred 100 | . 100 . Parts Sabotaged . | . . . Parts Stolen . | . . . Parts Stripped . | . . . Power Chain Reactions 1 | . 1 . Alert | -11 -10 -9 ------- Run | Yrd Mat Mat Peak Influence 327 | . 162 327 Initial . | . . . Average 70 | . 56 146 Maximum Alert Level 1 | . . 1 Low Security (%) 94 | 100 100 68 Level 1 5 | . . 31 Level 2 . | . . . Level 3 . | . . . Level 4 . | . . . Level 5 . | . . . High Security . | . . . Max Security . | . . . Squads Dispatched 6 | . 3 3 Investigation 2 | . 2 . Extermination . | . . . Reinforcement 4 | . 1 3 Assault . | . . . Garrison . | . . . Intercept . | . . . Searches Triggered . | . . . Construction Impeded . | . . . Haulers Reinforced . | . . . Active Scanning Responses . | . . . Cargo Convoy Interrupts . | . . . Stealth | -11 -10 -9 --------- Run | Yrd Mat Mat Distress Signals . | . . . Communications Jammed . | . . . Distress Signals . | . . . Times Spotted 31 | . 13 18 Peak Tracking Total 3 | . 3 3 Tactical Retreats . | . . . Traps | -11 -10 -9 ------- Run | Yrd Mat Mat Traps Triggered 2 | . 2 . Indirectly . | . . . Trap Hack Attempts . | . . . Triggered . | . . . Disarmed . | . . . Reprogrammed . | . . . Reused . | . . . Traps Extracted . | . . . Installed . | . . . Triggered . | . . . Machines | -11 -10 -9 ---------- Run | Yrd Mat Mat Machines Disabled 4 | . 3 1 Max in Single Turn 1 | . 1 1 Machines Repaired . | . . . Machines Dismantled . | . . . Machines Sabotaged . | . . . Overloaded Fab Kills . | . . . Hacking | -11 -10 -9 --------- Run | Yrd Mat Mat Machines Accessed 3 | . 2 1 Terminals . | . . . Fabricators . | . . . Repair Stations 2 | . 1 1 Recycling Units 1 | . 1 . Scanalyzers . | . . . Garrison Access . | . . . Total Hacks 5 | . 4 1 Successful 2 | . 2 . Failed 3 | . 2 1 Catastrophic 1 | . 1 . Database Lockouts . | . . . Manual . | . . . Terminals . | . . . Fabricators . | . . . Repair Stations 2 | . 1 1 Recycling Units 3 | . 3 . Scanalyzers . | . . . Garrison Access . | . . . Terminal Hacks . | . . . Fabricator Hacks . | . . . Repair Station Hacks . | . . . Recycling Unit Hacks 2 | . 2 . Report Inventory 1 | . 1 . Retrieve Components 1 | . 1 . Scanalyzer . | . . . Garrison Access Hacks . | . . . Unauthorized Hacks . | . . . Terminals . | . . . Fabricators . | . . . Repair Stations . | . . . Recycling Units . | . . . Scanalyzers . | . . . Garrison Access . | . . . Data Cores Recovered . | . . . Used . | . . . Hacking Detections 1 | . 1 . Full Trace Events 1 | . 1 . Feedback Events . | . . . Feedback Blocked . | . . . Robot Schematics Acquired . | . . . Robots Built . | . . . Authchips . | . . . Time . | . . . Total Robot Build Rating . | . . . Part Schematics Acquired . | . . . Parts Built . | . . . Authchips . | . . . Time . | . . . Total Part Build Rating . | . . . Parts Repaired . | . . . Time . | . . . Parts Recycled . | . . . Recycled Matter . | . . . Retrieved Matter . | . . . Retrieved Components 4 | . 4 . Parts Scanalyzed . | . . . Part Schematics Acquired . | . . . Parts Damaged . | . . . Bothacking | -11 -10 -9 ------------ Run | Yrd Mat Mat Used RIF Installer . | . . . Robots Hacked . | . . . Non-combat . | . . . Combat . | . . . Robot Hacks Applied . | . . . Relay Couplers Released . | . . . Fabnet Peak Effective % . | . . . Robots Rewired . | . . . Allies Hacked . | . . . Hacks Repelled . | . . . Allies | -11 -10 -9 -------- Run | Yrd Mat Mat Total Allies . | . . . Largest Group . | . . . Highest-Rated Group . | . . . Highest-Rated Ally . | . . . Total Orders . | . . . Ally Attacks . | . . . Total Damage . | . . . Kills . | . . . Allies Corrupted . | . . . Allies Melted . | . . . Intel | -11 -10 -9 ------- Run | Yrd Mat Mat Robot Analysis Total . | . . . Derelict Logs Recovered . | . . . Drone Launches . | . . . Drone Recoveries . | . . . Exploration | -11 -10 -9 ------------- Run | Yrd Mat Mat Turns Passed 2345 | 77 1840 428 Spaces Moved 1226 | 49 1035 142 Core 24 | 14 . 10 Treads 1202 | 35 1035 132 Legs . | . . . Wheels . | . . . Hover . | . . . Flight . | . . . Fastest Speed 50 | 50 160 160 Average Speed 163 | 128 160 200 Slowest Speed 240 | 160 160 240 Overloaded Moves . | . . . Propulsion Burnouts . | . . . Robots Hopped . | . . . Cave-ins Triggered . | . . . Exploration Rate (%) 38 | 4 96 15 Regions Visited 2 Branch Regions . Pre-discovered Areas . | . . . Known Exits Taken . | . . . Unknown Exits Taken 2 | 1 1 . Scrap Searched . | . . . Spaces Dug . | . . . Terrain Destroyed 15 | . . 15 Melee . | . . . Projectile . | . . . AOE 15 | . . 15 Terrain Rammed . | . . . Walls Destroyed . | . . . Machines Disabled . | . . . Actions | -11 -10 -9 --------- Run | Yrd Mat Mat Total 1392 | 63 1124 205 Wait 6 | . . 6 Move 1224 | 48 1034 142 Hop . | . . . Pick Up 28 | 8 16 4 Fast Attach . | . . . Attach 16 | 6 4 6 Detach 1 | . . 1 Swap 7 | 1 6 . Drop 14 | . 10 4 Fire 96 | . 54 42 Melee . | . . . Ram . | . . . Kick . | . . . Crush . | . . . Escape Stasis . | . . . Rewire . | . . . Trap . | . . . Miscellaneous . | . . . Route ------- -11/Scrapyard -10/Materials (discovered 5 exits: *Mat x3 / [*Min] / [*Sub]) -9/Materials (discovered 1 exit: *Mat) History --------- Turn | Location | Event 8 | -11/Scrapyard | Discovered new exit (range 15) 78 | -11/Scrapyard | Entered Materials 286 | -10/Materials | Discovered new exit (range 8) 308 | -10/Materials | Build established: Mutant 383 | -10/Materials | Discovered new exit (range 13) 1145 | -10/Materials | Discovered new exit (range 14) 1596 | -10/Materials | Discovered new exit (range 18) 1798 | -10/Materials | Discovered new exit (range 7) 1918 | -10/Materials | Entered another Materials area 1918 | -9/Materials | Evolved 2 slots: Utility x2 2229 | -9/Materials | Discovered new exit (range 11) 2304 | -9/Materials | Identified exit to Materials 2346 | -9/Materials | Self-destructed Last Messages --------------- R-06 Scavenger collects Signal Interpreter. K-01 Serf collects debris. R-06 Scavenger collects Visual Processing Unit. K-01 Serf collects debris. R-06 Scavenger collects Hover Unit. K-01 Serf collects debris. R-06 Scavenger collects Sml. Laser. R-06 Scavenger collects Ion Engine. G-47 Trooper knocked back. EXIT=IDENTIFIED: MATERIALS Lgt. Treads destroyed. G-47 Trooper destroyed. Lgt. Treads destroyed. G-34 Mercenary knocked back. G-34 Mercenary Sml. Laser blasted off. G-34 Mercenary destroyed. Dropped Med. Storage Unit. K-01 Serf collects debris. Acquired 34 matter. K-01 Serf collects debris. Map ----- +----------------------------------------------------+ | ?? #########+##???#*#??"" #?????????????? | | ?? #??????? ????# #???? #?????????????? | | ?### #??????? ????# #??????#?????????????? | | ???# #?????? ""???# #????????????????????? | | ???# #?????? """???# #????????????????????? | | ???# #????? """"??# #????????????????????? | | ???# #????? """"??# #????????????????????? | | ???+ #???? """ ?# #????????????????????? | | ???# #???? ???# ###??????????????????? | | ???### #???#######????# +??????????????????? | | ?????? #??????????????# #??????????????????? | | ?????? ???????????????# #??????????????????? | | ??????????????????????# +??????????????????? | | ??????????????????????# #??????????????????? | | ??????????????????????# #??????????????????? | | ??????????????????????# *#??????????????????? | | ??????????????????????# = #??????????????????? | | ??????????????????????# #??????????????????? | | ??????????????????????# #??????????????????? | | ??????????????????????+ #??????????????????? | | ??????????????????????# =#??????????????????? | | ??????????????????????# *u#??????????????????? | | ?????# ???????????????# ############???????? | | ?????# % ############ = #???????? | | ?????# % !%%k [! < #???????? | | + % a u mk@ ! #???????? | | """ # % u k% ############???????? | | ?????# ############ #??????????????????? | | ?????## ?????????????# #??????????????????? | | ??????#???????????????# a ?????????????????? | | ??????????????????????# # ????????????????? | | ??????????????????????#k a####???????????????? | | ??????????????????????# #??????????????????? | | ?????????????????????? % ??????????????????? | | ?????????????????????? ?????????????????? | | ?????????????????????+ T ?????????????????? | | ?????????????????????# ????????????????? | | ?????????????????????# ##????????????????? | | ?????????????????????### ##?????????????????? | | ???????????????????????# #??????????????????? | | ???????????????????????# #??????????????????? | | ???????????????????????? #??????????????????? | | ???????????????????????? #??????????????????? | | ????????????????????????? ???????????????????? | | ????????????????????????? ???????????????????? | | ?????????????????????????????????????????????? | | ?????????????????????????????????????????????? | | ?????????????????????????????????????????????? | | ?????????????????????????????????????????????? | | ?????????????????????????????????????????????? | +----------------------------------------------------+ Best States ------------- Heat Dissipation 28 Energy Generation 14 Energy Capacity 250 Matter Stores 300 Matter Capacity 300 Sight Range 20 Terrain Scan Density 10 Evasion (%) 50 Recoil Reduction 2 Item Schematics ----------------- None Robot Schematics ------------------ None Fabricated ------------ Nothing Alien Tech Used ----------------- None Achievements -------------- None Challenges ------------ None Game ------ Seed WaveCloakDesublimator Manual? 0 Play Time 00:17:19 Cumulative 10.5 hours Start 2024.04.09 @ 16:35:20 End 2024.04.09 @ 22:29:07 Sessions 3 Manual Loads 0 Difficulty Rogue Special Mode None Game No. 23 Rogue 23 Adventurer 0 Explorer 0 Win Type - Total 0 Types 0/0/0/0/0/0/0/0/0 Lore% 19 Gallery% 16 Achievement% 16 Wizard Run 0 Options --------- Layout 0 ASCII 0 Keyboard 0 Movement Arrows Keybinds 0 Fullscreen 1 Font 18/SmallcapsGlow Map View 76x50 Zoom Use 0% Tactical HUD 0 Map Filters NONE Filters NONE Steam 1 RUN: e9307920-5d6b-4f03-9595-4603c94e59a4